{"text_format":"3","workbook":"xlsx","n_sheets":3,"sheets":["Informações de funcionários","Calculadora de folhas de pag...","Contra-cheques individuais"],"not_rendered":{"defined_names":2},"read":"whole","date_system":"1900"}

{"sheet":"Informações de funcionários","index":0,"n_rows":7,"n_cols":13,"rows_kept":7,"merged":[[1,0,1,12],[2,0,2,5]]}
[]
["Informações de funcionários"]
["[Nome da empresa]"]
["ID do funcionário","Nome do Funcionário","Salário por hora","Situação fiscal","Subsídio federal \n(de W-4)","Imposto estadual","Imposto de Renda \n(Baseado no Subsídio Federal)","Imposto da \nprevidência social","Imposto de plano \nde saúde","Impostos Retidos Totais","Dedução \nde seguro","Outras deduções regulares","Deduções Regulares Totais \n(sem impostos)"]
[1,"Jesper Aaberg",{"v":10,"d":"R$ 10.00"},1,4,{"v":0.023,"d":"2.30%"},{"v":0.28,"d":"28.00%"},{"v":0.063,"d":"6.30%"},{"v":0.0145,"d":"1.45%"},{"$f":"Tabela1[[#This Row],[Imposto estadual]]+Tabela1[[#This Row],[Imposto de Renda \n(Baseado no Subsídio Federal)]]+Tabela1[[#This Row],[Imposto da \nprevidência social]]+Tabela1[[#This Row],[Imposto de plano \nde saúde]]","v":{"v":0.38050000000000006,"d":"38.05%"}},{"v":20,"d":"R$ 20.00"},{"v":40,"d":"R$ 40.00"},{"$f":"Tabela1[[#This Row],[Dedução \nde seguro]]+Tabela1[[#This Row],[Outras deduções regulares]]","v":{"v":60,"d":"R$ 60.00"}}]
[2,"Wilson Pais",{"v":13,"d":"R$ 13.00"},1,4,{"v":0.023,"d":"2.30%"},{"v":0.28,"d":"28.00%"},{"v":0.063,"d":"6.30%"},{"v":0.0145,"d":"1.45%"},{"$f":"Tabela1[[#This Row],[Imposto estadual]]+Tabela1[[#This Row],[Imposto de Renda \n(Baseado no Subsídio Federal)]]+Tabela1[[#This Row],[Imposto da \nprevidência social]]+Tabela1[[#This Row],[Imposto de plano \nde saúde]]","v":{"v":0.38050000000000006,"d":"38.05%"}},{"v":20,"d":"R$ 20.00"},{"v":52,"d":"R$ 52.00"},{"$f":"Tabela1[[#This Row],[Dedução \nde seguro]]+Tabela1[[#This Row],[Outras deduções regulares]]","v":{"v":72,"d":"R$ 72.00"}}]
[3,"Kathie Flood",{"v":10,"d":"R$ 10.00"},1,4,{"v":0.023,"d":"2.30%"},{"v":0.28,"d":"28.00%"},{"v":0.063,"d":"6.30%"},{"v":0.0145,"d":"1.45%"},{"$f":"Tabela1[[#This Row],[Imposto estadual]]+Tabela1[[#This Row],[Imposto de Renda \n(Baseado no Subsídio Federal)]]+Tabela1[[#This Row],[Imposto da \nprevidência social]]+Tabela1[[#This Row],[Imposto de plano \nde saúde]]","v":{"v":0.38050000000000006,"d":"38.05%"}},{"v":20,"d":"R$ 20.00"},0,{"$f":"Tabela1[[#This Row],[Dedução \nde seguro]]+Tabela1[[#This Row],[Outras deduções regulares]]","v":{"v":20,"d":"R$ 20.00"}}]

{"sheet":"Calculadora de folhas de pag...","index":1,"n_rows":7,"n_cols":11,"rows_kept":7,"merged":[[0,0,1,8],[2,0,2,5]]}
["Calculadora de folhas de pagamento"]
[{"$nulls":9},"Final do período:",{"v":45688,"d":"4568800.00%"}]
[{"$f":"'Informações de funcionários'!$A$3","v":"[Nome da empresa]"}]
["ID do \nfuncionário","Nome do Funcionário","Horas normais trabalhadas","Horas de férias","Horas de licença médica","Horas Extras","Relação de horas extras","Pagamento bruto","Impostos e Deduções ","Outras deduções","Pagamento líquido"]
[1,{"$f":"VLOOKUP(A5,Tabela1[],2,FALSE)","v":"Jesper Aaberg"},{"v":50,"d":"50.00"},{"v":5,"d":"5.00"},{"v":1,"d":"1.00"},null,null,{"$f":"(VLOOKUP(A5,Tabela1[],3,FALSE)*(Tabela2[[#This Row],[Horas normais trabalhadas]]+Tabela2[[#This Row],[Horas de férias]]+Tabela2[[#This Row],[Horas de licença médica]])+Tabela2[[#This Row],[Horas Extras]]*Tabela2[[#This Row],[Relação de horas extras]])","v":{"v":560,"d":"R$ 560.00"}},{"$f":"VLOOKUP(A5,Tabela1[],10,FALSE)*Tabela2[[#This Row],[Pagamento bruto]]+Tabela1[[#This Row],[Deduções Regulares Totais \n(sem impostos)]]","v":{"v":273.08000000000004,"d":"R$ 273.08"}},{"v":20,"d":"R$ 20.00"},{"$f":"Tabela2[[#This Row],[Pagamento bruto]]-Tabela2[[#This Row],[Impostos e Deduções ]]-Tabela2[[#This Row],[Outras deduções]]","v":{"v":266.91999999999996,"d":"R$ 266.92"}}]
[2,{"$f":"VLOOKUP(A6,Tabela1[],2,FALSE)","v":"Wilson Pais"},{"v":40,"d":"40.00"},{"v":0,"d":"0.00"},{"v":0,"d":"0.00"},null,null,{"$f":"(VLOOKUP(A6,Tabela1[],3,FALSE)*(Tabela2[[#This Row],[Horas normais trabalhadas]]+Tabela2[[#This Row],[Horas de férias]]+Tabela2[[#This Row],[Horas de licença médica]])+Tabela2[[#This Row],[Horas Extras]]*Tabela2[[#This Row],[Relação de horas extras]])","v":{"v":520,"d":"R$ 520.00"}},{"$f":"VLOOKUP(A6,Tabela1[],10,FALSE)*Tabela2[[#This Row],[Pagamento bruto]]+Tabela1[[#This Row],[Deduções Regulares Totais \n(sem impostos)]]","v":{"v":269.86,"d":"R$ 269.86"}},{"v":52,"d":"R$ 52.00"},{"$f":"Tabela2[[#This Row],[Pagamento bruto]]-Tabela2[[#This Row],[Impostos e Deduções ]]-Tabela2[[#This Row],[Outras deduções]]","v":{"v":198.14,"d":"R$ 198.14"}}]
[3,{"$f":"VLOOKUP(A7,Tabela1[],2,FALSE)","v":"Kathie Flood"},{"v":52,"d":"52.00"},{"v":0,"d":"0.00"},{"v":0,"d":"0.00"},{"v":2,"d":"2.00"},{"v":20,"d":"R$ 20.00"},{"$f":"(VLOOKUP(A7,Tabela1[],3,FALSE)*(Tabela2[[#This Row],[Horas normais trabalhadas]]+Tabela2[[#This Row],[Horas de férias]]+Tabela2[[#This Row],[Horas de licença médica]])+Tabela2[[#This Row],[Horas Extras]]*Tabela2[[#This Row],[Relação de horas extras]])","v":{"v":560,"d":"R$ 560.00"}},{"$f":"VLOOKUP(A7,Tabela1[],10,FALSE)*Tabela2[[#This Row],[Pagamento bruto]]+Tabela1[[#This Row],[Deduções Regulares Totais \n(sem impostos)]]","v":{"v":233.08000000000004,"d":"R$ 233.08"}},{"v":20,"d":"R$ 20.00"},{"$f":"Tabela2[[#This Row],[Pagamento bruto]]-Tabela2[[#This Row],[Impostos e Deduções ]]-Tabela2[[#This Row],[Outras deduções]]","v":{"v":306.91999999999996,"d":"R$ 306.92"}}]

{"sheet":"Contra-cheques individuais","index":2,"n_rows":48,"n_cols":8,"rows_kept":48,"merged":[[1,2,1,7],[13,2,13,7],[25,2,25,7],[38,2,38,7]]}
[]
[null,null,{"$f":"('Informações de funcionários'!$A$3)","v":"[Nome da empresa]"}]
[null,null,"Período:",{"$f":"'Calculadora de folhas de pag...'!$K$2","v":{"v":45688,"d":"4568800.00%"}},"Nome do funcionário",{"$f":"IFERROR(VLOOKUP(H3,Tabela1[],2),\"\")","v":"Jesper Aaberg"},"ID do funcionário",1]
[]
[null,null,"Situação fiscal",{"$f":"IFERROR(VLOOKUP(H3,Tabela1[],4),\"\")","v":1},"Subsídio federal (de W-4)",{"$f":"IFERROR(VLOOKUP(H3,Tabela1[],5,FALSE),\"\")","v":4},"Horas trabalhadas",{"$f":"IFERROR(VLOOKUP(H3,Tabela2[],3,FALSE),\"\")","v":50}]
[null,null,"Taxa por hora",{"$f":"IFERROR(VLOOKUP(H3,Tabela1[],3,FALSE),\"\")","v":{"v":10,"d":"R$ 10.00"}},"Relação de horas extras",{"$f":"IFERROR(VLOOKUP(H3,Tabela2[],7,FALSE),\"\")","v":0},"Horas de licença médica",{"$f":"IFERROR(VLOOKUP(H3,Tabela2[],5,FALSE),\"\")","v":1}]
[null,null,"Imposto da previdência social",{"$f":"IFERROR(IFERROR(VLOOKUP(H3,Tabela1[],8,FALSE),\"\")*H9,\"\")","v":{"v":35.28,"d":"R$ 35.28"}},"Imposto de renda ",{"$f":"IFERROR(IFERROR(VLOOKUP(H3,Tabela1[],7,FALSE),\"\")*H9,\"\")","v":{"v":156.8,"d":"R$ 156.80"}},"Horas de férias",{"$f":"IFERROR(VLOOKUP(H3,Tabela2[],4,FALSE),\"\")","v":5}]
[null,null,"Imposto de plano de saúde ",{"$f":"IFERROR(IFERROR(VLOOKUP(H3,Tabela1[],9,FALSE),\"\")*H9,\"\")","v":{"v":8.120000000000001,"d":"R$ 8.12"}},"Imposto estadual ",{"$f":"IFERROR(IFERROR(VLOOKUP(H3,Tabela1[],6,FALSE),\"\")*H9,\"\")","v":{"v":12.879999999999999,"d":"R$ 12.88"}},"Horas extras",{"$f":"IFERROR(VLOOKUP(H3,Tabela2[],6,FALSE),\"\")","v":0}]
[null,null,"Dedução de seguro",{"$f":"IFERROR(VLOOKUP(H3,Tabela1[],11,FALSE),\"\")","v":{"v":20,"d":"R$ 20.00"}},"Outras deduções regulares",{"$f":"IFERROR(VLOOKUP(H3,Tabela1[],12,FALSE),\"\")","v":{"v":40,"d":"R$ 40.00"}},"Pagamento bruto",{"$f":"IFERROR(VLOOKUP(H3,Tabela2[],8,FALSE),\"\")","v":{"v":560,"d":"R$ 560.00"}}]
[null,null,"Total de impostos e deduções regulares ",{"$f":"IFERROR(SUM(F7:F9)+SUM(D7:D9),\"\")","v":{"v":273.08000000000004,"d":"R$ 273.08"}},"Outras deduções",{"$f":"IFERROR(VLOOKUP(H3,Tabela2[],10,FALSE),\"\")","v":{"v":20,"d":"R$ 20.00"}},"Total de impostos e deduções ",{"$f":"IFERROR(IFERROR(VLOOKUP(H3,Tabela2[],9,FALSE),\"\")+F10,\"\")","v":{"v":293.08000000000004,"d":"R$ 293.08"}}]
[{"$nulls":6},"Pagamento líquido",{"$f":"IFERROR(VLOOKUP(H3,Tabela2[],11,FALSE),\"\")","v":{"v":266.91999999999996,"d":"R$ 266.92"}}]
[]
[]
[null,null,{"$f":"('Informações de funcionários'!$A$3)","v":"[Nome da empresa]"}]
[null,null,"Período:",{"$f":"'Calculadora de folhas de pag...'!$K$2","v":{"v":45688,"d":"4568800.00%"}},"Nome do funcionário",{"$f":"IFERROR(VLOOKUP(H15,Tabela1[],2),\"\")","v":"Wilson Pais"},"ID do funcionário",2]
[]
[null,null,"Situação fiscal",{"$f":"IFERROR(VLOOKUP(H15,Tabela1[],4),\"\")","v":1},"Subsídio federal (de W-4)",{"$f":"IFERROR(VLOOKUP(H15,Tabela1[],5,FALSE),\"\")","v":4},"Horas trabalhadas",{"$f":"IFERROR(VLOOKUP(H15,Tabela2[],3,FALSE),\"\")","v":40}]
[null,null,"Taxa por hora",{"$f":"IFERROR(VLOOKUP(H15,Tabela1[],3,FALSE),\"\")","v":{"v":13,"d":"R$ 13.00"}},"Relação de horas extras",{"$f":"IFERROR(VLOOKUP(H15,Tabela2[],7,FALSE),\"\")","v":0},"Horas de licença médica",{"$f":"IFERROR(VLOOKUP(H15,Tabela2[],5,FALSE),\"\")","v":0}]
[null,null,"Imposto da previdência social",{"$f":"IFERROR(IFERROR(VLOOKUP(H15,Tabela1[],8,FALSE),\"\")*H21,\"\")","v":{"v":32.76,"d":"R$ 32.76"}},"Imposto de renda ",{"$f":"IFERROR(IFERROR(VLOOKUP(H15,Tabela1[],7,FALSE),\"\")*H21,\"\")","v":{"v":145.60000000000002,"d":"R$ 145.60"}},"Horas de férias",{"$f":"IFERROR(VLOOKUP(H15,Tabela2[],4,FALSE),\"\")","v":0}]
[null,null,"Imposto de plano de saúde ",{"$f":"IFERROR(IFERROR(VLOOKUP(H15,Tabela1[],9,FALSE),\"\")*H21,\"\")","v":{"v":7.54,"d":"R$ 7.54"}},"Imposto estadual ",{"$f":"IFERROR(IFERROR(VLOOKUP(H15,Tabela1[],6,FALSE),\"\")*H21,\"\")","v":{"v":11.959999999999999,"d":"R$ 11.96"}},"Horas extras",{"$f":"IFERROR(VLOOKUP(H15,Tabela2[],6,FALSE),\"\")","v":0}]
[null,null,"Dedução de seguro",{"$f":"IFERROR(VLOOKUP(H15,Tabela1[],11,FALSE),\"\")","v":{"v":20,"d":"R$ 20.00"}},"Outras deduções regulares",{"$f":"IFERROR(VLOOKUP(H15,Tabela1[],12,FALSE),\"\")","v":{"v":52,"d":"R$ 52.00"}},"Pagamento bruto",{"$f":"IFERROR(VLOOKUP(H15,Tabela2[],8,FALSE),\"\")","v":{"v":520,"d":"R$ 520.00"}}]
[null,null,"Total de impostos e deduções regulares ",{"$f":"IFERROR(SUM(F19:F21)+SUM(D19:D21),\"\")","v":{"v":269.86,"d":"R$ 269.86"}},"Outras deduções",{"$f":"IFERROR(VLOOKUP(H15,Tabela2[],10,FALSE),\"\")","v":{"v":52,"d":"R$ 52.00"}},"Total de impostos e deduções ",{"$f":"IFERROR(IFERROR(VLOOKUP(H15,Tabela2[],9,FALSE),\"\")+F22,\"\")","v":{"v":321.86,"d":"R$ 321.86"}}]
[{"$nulls":6},"Pagamento líquido",{"$f":"IFERROR(VLOOKUP(H15,Tabela2[],11,FALSE),\"\")","v":{"v":198.14,"d":"R$ 198.14"}}]
[]
[]
[null,null,{"$f":"('Informações de funcionários'!$A$3)","v":"[Nome da empresa]"}]
[null,null,"Período:",{"$f":"'Calculadora de folhas de pag...'!$K$2","v":{"v":45688,"d":"4568800.00%"}},"Nome do funcionário",{"$f":"IFERROR(VLOOKUP(H27,Tabela1[],2),\"\")","v":"Kathie Flood"},"ID do funcionário",3]
[]
[null,null,"Situação fiscal",{"$f":"IFERROR(VLOOKUP(H27,Tabela1[],4),\"\")","v":1},"Subsídio federal (de W-4)",{"$f":"IFERROR(VLOOKUP(H27,Tabela1[],5,FALSE),\"\")","v":4},"Horas trabalhadas",{"$f":"IFERROR(VLOOKUP(H27,Tabela2[],3,FALSE),\"\")","v":52}]
[null,null,"Taxa por hora",{"$f":"IFERROR(VLOOKUP(H27,Tabela1[],3,FALSE),\"\")","v":{"v":10,"d":"R$ 10.00"}},"Relação de horas extras",{"$f":"IFERROR(VLOOKUP(H27,Tabela2[],7,FALSE),\"\")","v":{"v":20,"d":"R$ 20.00"}},"Horas de licença médica",{"$f":"IFERROR(VLOOKUP(H27,Tabela2[],5,FALSE),\"\")","v":0}]
[null,null,"Imposto da previdência social",{"$f":"IFERROR(IFERROR(VLOOKUP(H27,Tabela1[],8,FALSE),\"\")*H33,\"\")","v":{"v":35.28,"d":"R$ 35.28"}},"Imposto de renda ",{"$f":"IFERROR(IFERROR(VLOOKUP(H27,Tabela1[],7,FALSE),\"\")*H33,\"\")","v":{"v":156.8,"d":"R$ 156.80"}},"Horas de férias",{"$f":"IFERROR(VLOOKUP(H27,Tabela2[],4,FALSE),\"\")","v":0}]
[null,null,"Imposto de plano de saúde ",{"$f":"IFERROR(IFERROR(VLOOKUP(H27,Tabela1[],9,FALSE),\"\")*H33,\"\")","v":{"v":8.120000000000001,"d":"R$ 8.12"}},"Imposto estadual ",{"$f":"IFERROR(IFERROR(VLOOKUP(H27,Tabela1[],6,FALSE),\"\")*H33,\"\")","v":{"v":12.879999999999999,"d":"R$ 12.88"}},"Horas extras",{"$f":"IFERROR(VLOOKUP(H27,Tabela2[],6,FALSE),\"\")","v":2}]
[null,null,"Dedução de seguro",{"$f":"IFERROR(VLOOKUP(H27,Tabela1[],11,FALSE),\"\")","v":{"v":20,"d":"R$ 20.00"}},"Outras deduções regulares",{"$f":"IFERROR(VLOOKUP(H27,Tabela1[],12,FALSE),\"\")","v":0},"Pagamento bruto",{"$f":"IFERROR(VLOOKUP(H27,Tabela2[],8,FALSE),\"\")","v":{"v":560,"d":"R$ 560.00"}}]
[null,null,"Total de impostos e deduções regulares ",{"$f":"IFERROR(SUM(F31:F33)+SUM(D31:D33),\"\")","v":{"v":233.08,"d":"R$ 233.08"}},"Outras deduções",{"$f":"IFERROR(VLOOKUP(H27,Tabela2[],10,FALSE),\"\")","v":{"v":20,"d":"R$ 20.00"}},"Total de impostos e deduções ",{"$f":"IFERROR(IFERROR(VLOOKUP(H27,Tabela2[],9,FALSE),\"\")+F34,\"\")","v":{"v":253.08000000000004,"d":"R$ 253.08"}}]
[{"$nulls":6},"Pagamento líquido",{"$f":"IFERROR(VLOOKUP(H27,Tabela2[],11,FALSE),\"\")","v":{"v":306.91999999999996,"d":"R$ 306.92"}}]
[]
[]
[]
[null,null,{"$f":"('Informações de funcionários'!$A$3)","v":"[Nome da empresa]"}]
[null,null,"Período:",{"$f":"'Calculadora de folhas de pag...'!$K$2","v":{"v":45688,"d":"4568800.00%"}},"Nome do funcionário",{"$f":"IFERROR(VLOOKUP(H40,Tabela1[],2),\"\")","v":""},"ID do funcionário"]
[]
[null,null,"Situação fiscal",{"$f":"IFERROR(VLOOKUP(H40,Tabela1[],4),\"\")","v":""},"Subsídio federal (de W-4)",{"$f":"IFERROR(VLOOKUP(H40,Tabela1[],5,FALSE),\"\")","v":""},"Horas trabalhadas",{"$f":"IFERROR(VLOOKUP(H40,Tabela2[],3,FALSE),\"\")","v":""}]
[null,null,"Taxa por hora",{"$f":"IFERROR(VLOOKUP(H40,Tabela1[],3,FALSE),\"\")","v":""},"Relação de horas extras",{"$f":"IFERROR(VLOOKUP(H40,Tabela2[],7,FALSE),\"\")","v":""},"Horas de licença médica",{"$f":"IFERROR(VLOOKUP(H40,Tabela2[],5,FALSE),\"\")","v":""}]
[null,null,"Imposto da previdência social",{"$f":"IFERROR(IFERROR(VLOOKUP(H40,Tabela1[],8,FALSE),\"\")*H46,\"\")","v":""},"Imposto de renda ",{"$f":"IFERROR(IFERROR(VLOOKUP(H40,Tabela1[],7,FALSE),\"\")*H46,\"\")","v":""},"Horas de férias",{"$f":"IFERROR(VLOOKUP(H40,Tabela2[],4,FALSE),\"\")","v":""}]
[null,null,"Imposto de plano de saúde ",{"$f":"IFERROR(IFERROR(VLOOKUP(H40,Tabela1[],9,FALSE),\"\")*H46,\"\")","v":""},"Imposto estadual ",{"$f":"IFERROR(IFERROR(VLOOKUP(H40,Tabela1[],6,FALSE),\"\")*H46,\"\")","v":""},"Horas extras",{"$f":"IFERROR(VLOOKUP(H40,Tabela2[],6,FALSE),\"\")","v":""}]
[null,null,"Dedução de seguro",{"$f":"IFERROR(VLOOKUP(H40,Tabela1[],11,FALSE),\"\")","v":""},"Outras deduções regulares",{"$f":"IFERROR(VLOOKUP(H40,Tabela1[],12,FALSE),\"\")","v":""},"Pagamento bruto",{"$f":"IFERROR(VLOOKUP(H40,Tabela2[],8,FALSE),\"\")","v":""}]
[null,null,"Total de impostos e deduções regulares ",{"$f":"IFERROR(SUM(F44:F46)+SUM(D44:D46),\"\")","v":0},"Outras deduções",{"$f":"IFERROR(VLOOKUP(H40,Tabela2[],10,FALSE),\"\")","v":""},"Total de impostos e deduções ",{"$f":"IFERROR(IFERROR(VLOOKUP(H40,Tabela2[],9,FALSE),\"\")+F47,\"\")","v":""}]
[{"$nulls":6},"Pagamento líquido",{"$f":"IFERROR(VLOOKUP(H40,Tabela2[],11,FALSE),\"\")","v":""}]